[Event "FIDE World Rapid-ch Open 2018"]
[White "Gaifullin, Artur"]
[Black "Tukhaev, Adam"]
[Site "St. Petersburg"]
[Round "10.60"]
[Annotator "ChessBase"]
[Result "0-1"]
[Date "2018.12.27"]
[WhiteElo "2448"]
[BlackElo "2527"]
[PlyCount "172"]
[TimeControl "900+10"]

1. Nf3 {[%emt 0:0:0]} g6 {[%emt 0:0:30]} 2. d4 {[%emt 0:1:15]} Bg7 {[%emt 0:0:12]
} 3. c4 {[%emt 0:0:8]} d6 {[%emt 0:0:17]} 4. Nc3 {[%emt 0:0:0]} Bg4 {[%emt 0:0:21]} 5. e3 {[%emt 0:0:14]} Nf6 {[%emt 0:1:27]} 6. h3 {[%emt 0:0:25]
} Bf5 {[%emt 0:0:8]} 7. Qb3 {[%emt 0:1:9]} Qc8 {[%emt 0:0:0]} 8. g4 {[%emt 0:0:42]} Bd7 {[%emt 0:0:12]} 9. Bg2 {[%emt 0:0:2]} 0-0 {[%emt 0:1:23]
} 10. Bd2 {[%emt 0:1:27]} Nc6 {[%emt 0:1:50]} 11. a3 {[%emt 0:0:0]} Re8 {[%emt 0:3:45]} 12. Qc2 {[%emt 0:1:31]} h5 {[%emt 0:1:56]} 13. g5 {[%emt 0:1:18]} Nh7 {[%emt 0:0:1]} 14. d5 {[%emt 0:0:6]} Nd8 {[%emt 0:0:0]} 15. 0-0-0 {[%emt 0:0:46]} c6 {[%emt 0:0:2]} 16. Nh4 {[%emt 0:1:6]} cxd5 {[%emt 0:0:18]} 17. Nxd5 {[%emt 0:0:11]} b5 {[%emt 0:1:28]} 18. Bc3 {[%emt 0:0:52]
} Bxc3 {[%emt 0:0:26]} 19. Nxc3 {[%emt 0:0:9]} Rb8 {[%emt 0:0:0]} 20. cxb5 {[%emt 0:0:31]} Nf8 {[%emt 0:0:29]} 21. Nd5 {[%emt 0:0:58]} Qxc2+ {[%emt 0:0:15]} 22. Kxc2 {[%emt 0:0:1]} Bxb5 {[%emt 0:0:4]} 23. Kb1 {[%emt 0:0:22]} Nde6 {[%emt 0:0:3]} 24. f4 {[%emt 0:0:9]} Ba4 {[%emt 0:0:0]} 25. Rd2 {[%emt 0:0:3]} Nc5 {[%emt 0:0:2]} 26. f5 {[%emt 0:0:11]} Bb5 {[%emt 0:1:13]} 27. Rhd1 {[%emt 0:1:5]} gxf5 {[%emt 0:0:27]} 28. Nxf5 {[%emt 0:0:3]
} Ng6 {[%emt 0:0:1]} 29. Nc7 {[%emt 0:1:7]} Rec8 {[%emt 0:0:0]} 30. Nxb5 {[%emt 0:0:6]} Rxb5 {[%emt 0:0:1]} 31. Bd5 {[%emt 0:0:12]} Na4 {[%emt 0:0:42]} 32. Ka1 {[%emt 0:0:24]} Kf8 {[%emt 0:0:13]} 33. Rf1 {[%emt 0:0:23]
} Rcc5 {[%emt 0:0:5]} 34. e4 {[%emt 0:0:33]} Nb6 {[%emt 0:0:0]} 35. b4 {[%emt 0:0:12]} Rxd5 {[%emt 0:0:27]} 36. exd5 {[%emt 0:0:2]} Rxd5 {[%emt 0:0:8]} 37. Rxd5 {[%emt 0:0:25]} Nxd5 {[%emt 0:0:1]} 38. Ng3 {[%emt 0:0:10]
} h4 {[%emt 0:0:5]} 39. Ne4 {[%emt 0:0:1]} Ndf4 {[%emt 0:0:0]} 40. Rf3 {[%emt 0:0:1]} d5 {[%emt 0:0:3]} 41. Nc5 {[%emt 0:0:4]} e6 {[%emt 0:0:34]
} 42. a4 {[%emt 0:0:26]} Ke7 {[%emt 0:0:1]} 43. Nd3 {[%emt 0:0:0]} Nxd3 {[%emt 0:0:15]} 44. Rxd3 {[%emt 0:0:1]} Nf4 {[%emt 0:0:1]} 45. Rb3 {[%emt 0:0:7]} Kd6 {[%emt 0:0:5]} 46. b5 {[%emt 0:0:2]} d4 {[%emt 0:0:14]
} 47. a5 {[%emt 0:0:3]} Kc7 {[%emt 0:0:2]} 48. b6+ {[%emt 0:0:0]} axb6 {[%emt 0:0:1]} 49. Rxb6 {[%emt 0:0:2]} Nxh3 {[%emt 0:0:29]} 50. Rb3 {[%emt 0:0:22]} d3 {[%emt 0:0:7]} 51. Rxd3 {[%emt 0:0:16]} Nxg5 {[%emt 0:0:5]
} 52. Rb3 {[%emt 0:0:8]} h3 {[%emt 0:0:1]} 53. a6 {[%emt 0:0:0]} h2 {[%emt 0:0:2]} 54. Rb7+ {[%emt 0:0:3]} Kc6 {[%emt 0:0:23]} 55. Rb1 {[%emt 0:0:2]} h1=Q {[%emt 0:0:6]} 56. Rxh1 {[%emt 0:0:1]} Kb6 {[%emt 0:0:1]
} 57. Rh5 {[%emt 0:0:8]} f6 {[%emt 0:0:6]} 58. Rh6 {[%emt 0:0:0]} Ne4 {[%emt 0:0:7]} 59. Kb2 {[%emt 0:0:33]} Kxa6 {[%emt 0:0:1]} 60. Kc2 {[%emt 0:0:1]} Kb5 {[%emt 0:0:4]} 61. Kd3 {[%emt 0:0:2]} Nc5+ {[%emt 0:0:16]
} 62. Ke3 {[%emt 0:0:1]} Nd7 {[%emt 0:0:5]} 63. Kf4 {[%emt 0:0:0]} Kc6 {[%emt 0:0:2]} 64. Rh1 {[%emt 0:0:44]} Nb6 {[%emt 0:0:3]} 65. Rc1+ {[%emt 0:0:9]} Kd6 {[%emt 0:0:2]} 66. Ra1 {[%emt 0:0:20]} Nd5+ {[%emt 0:0:3]
} 67. Ke4 {[%emt 0:0:3]} f5+ {[%emt 0:0:2]} 68. Kf3 {[%emt 0:0:0]} e5 {[%emt 0:0:30]} 69. Re1 {[%emt 0:0:6]} Ke6 {[%emt 0:0:8]} 70. Re2 {[%emt 0:0:15]} Kf6 {[%emt 0:0:6]} 71. Re1 {[%emt 0:0:3]} Ne7 {[%emt 0:0:7]
} 72. Ra1 {[%emt 0:0:15]} e4+ {[%emt 0:0:7]} 73. Ke3 {[%emt 0:0:0]} Ke5 {[%emt 0:0:2]} 74. Ra7 {[%emt 0:0:13]} f4+ {[%emt 0:0:9]} 75. Kf2 {[%emt 0:0:8]} Nc6 {[%emt 0:0:8]} 76. Ra4 {[%emt 0:0:11]} Nd4 {[%emt 0:0:41]
} 77. Ra5+ {[%emt 0:0:2]} Ke6 {[%emt 0:0:3]} 78. Rh5 {[%emt 0:0:29]
} e3+ {[%emt 0:0:3]} 79. Ke1 {[%emt 0:0:1]} f3 {[%emt 0:0:0]} 80. Rc5 {[%emt 0:0:5]} Nf5 {[%emt 0:1:2]} 81. Rc2 {[%emt 0:0:25]} Ke5 {[%emt 0:0:8]} 82. Kf1 {[%emt 0:0:4]} Ng3+ {[%emt 0:0:15]} 83. Kg1 {[%emt 0:0:2]
} Ne4 {[%emt 0:0:4]} 84. Rc8 {[%emt 0:0:24]} e2 {[%emt 0:0:0]} 85. Re8+ {[%emt 0:0:2]} Kd4 {[%emt 0:0:4]} 86. Rd8+ {[%emt 0:0:5]} Ke3 {[%emt 0:0:1]} 0-1

[Event "FIDE World Rapid-ch Open 2018"]
[White "Sharma, Dinesh K."]
[Black "Tregubov, Pavel V."]
[Site "St. Petersburg"]
[Round "10.61"]
[Annotator "ChessBase"]
[Result "1/2-1/2"]
[Date "2018.12.27"]
[WhiteElo "2295"]
[BlackElo "2592"]
[PlyCount "101"]
[TimeControl "900+10"]

1. e4 {[%emt 0:0:0]} c5 {[%emt 0:0:0]} 2. Nf3 {[%emt 0:0:0]} e6 {[%emt 0:0:0]} 3. d4 {[%emt 0:0:0]} cxd4 {[%emt 0:0:0]} 4. Nxd4 {[%emt 0:0:0]} Nc6 {[%emt 0:0:0]} 5. Nc3 {[%emt 0:0:1]} Nf6 {[%emt 0:0:0]} 6. a3 {[%emt 0:0:52]
} Be7 {[%emt 0:0:45]} 7. Be3 {[%emt 0:0:13]} 0-0 {[%emt 0:0:0]} 8. Qe2 {[%emt 0:0:58]} d5 {[%emt 0:2:54]} 9. exd5 {[%emt 0:1:57]} Nxd5 {[%emt 0:0:3]} 10. Nxd5 {[%emt 0:0:36]} Qxd5 {[%emt 0:0:6]} 11. Qc4 {[%emt 0:2:15]
} Qa5+ {[%emt 0:1:8]} 12. Bd2 {[%emt 0:0:56]} Qe5+ {[%emt 0:0:0]} 13. Be3 {[%emt 0:0:2]} Bf6 {[%emt 0:2:40]} 14. Nxc6 {[%emt 0:2:31]} bxc6 {[%emt 0:0:1]} 15. c3 {[%emt 0:0:7]} a5 {[%emt 0:2:29]} 16. 0-0-0 {[%emt 0:3:3]
} Ba6 {[%emt 0:0:30]} 17. Qf4 {[%emt 0:0:20]} Qh5 {[%emt 0:0:0]} 18. g4 {[%emt 0:0:29]} Qg6 {[%emt 0:0:50]} 19. Bxa6 {[%emt 0:0:22]} Rxa6 {[%emt 0:0:1]} 20. g5 {[%emt 0:0:8]} Bd8 {[%emt 0:0:50]} 21. h4 {[%emt 0:0:19]
} Ra8 {[%emt 0:0:37]} 22. h5 {[%emt 0:0:40]} Qf5 {[%emt 0:0:0]} 23. Qxf5 {[%emt 0:0:16]} exf5 {[%emt 0:0:1]} 24. Bf4 {[%emt 0:0:12]} Re8 {[%emt 0:0:6]} 25. Rhe1 {[%emt 0:0:19]} Rxe1 {[%emt 0:1:27]} 26. Rxe1 {[%emt 0:0:5]
} Bb6 {[%emt 0:0:1]} 27. f3 {[%emt 0:0:7]} g6 {[%emt 0:1:25]
} 28. h6 {[%emt 0:0:21]} Bc5 {[%emt 0:0:18]} 29. a4 {[%emt 0:0:18]} f6 {[%emt 0:0:44]
} 30. Re6 {[%emt 0:0:49]} fxg5 {[%emt 0:0:8]} 31. Bxg5 {[%emt 0:0:4]
} Rc8 {[%emt 0:0:4]} 32. Re5 {[%emt 0:0:6]} Bb6 {[%emt 0:0:0]} 33. Re7 {[%emt 0:0:11]} Rc7 {[%emt 0:0:1]} 34. Re8+ {[%emt 0:0:34]} Kf7 {[%emt 0:0:1]} 35. Rb8 {[%emt 0:0:11]} Ba7 {[%emt 0:0:12]} 36. Rh8 {[%emt 0:0:9]
} Ke6 {[%emt 0:0:2]} 37. Re8+ {[%emt 0:0:6]} Kd5 {[%emt 0:0:0]} 38. Rg8 {[%emt 0:0:5]} Rd7 {[%emt 0:0:17]} 39. Kc2 {[%emt 0:0:14]} Bb6 {[%emt 0:0:17]} 40. Re8 {[%emt 0:0:13]} c5 {[%emt 0:0:20]} 41. b3 {[%emt 0:0:0]} Bc7 {[%emt 0:0:10]} 42. Be3 {[%emt 0:0:47]} f4 {[%emt 0:0:29]} 43. Bd2 {[%emt 0:0:2]} g5 {[%emt 0:0:17]} 44. Rg8 {[%emt 0:0:4]} Bd8 {[%emt 0:0:0]} 45. Rg7 {[%emt 0:0:22]} Ke6 {[%emt 0:0:1]} 46. Rg8 {[%emt 0:0:1]} Kf5 {[%emt 0:0:22]} 47. Rg7 {[%emt 0:0:11]} Ke6 {[%emt 0:0:8]} 48. Rg8 {[%emt 0:0:8]
} Kf7 {[%emt 0:0:20]} 49. Rg7+ {[%emt 0:0:2]} Ke6 {[%emt 0:0:0]} 50. Rg8 {[%emt 0:0:32]} Kf7 {[%emt 0:0:3]} 51. Rg7+ 1/2-1/2

[Event "FIDE World Rapid-ch Open 2018"]
[White "Sokolin, Leonid"]
[Black "Le, Quang Liem"]
[Site "St. Petersburg"]
[Round "10.62"]
[Annotator "RC"]
[Result "1/2-1/2"]
[Date "2018.12.27"]
[WhiteElo "2508"]
[BlackElo "2714"]
[PlyCount "143"]
[TimeControl "900+10"]

1. e4 {[%emt 0:0:0]} c5 {[%emt 0:0:0]} 2. Nf3 {[%emt 0:0:0]} d6 {[%emt 0:0:0]} 3. d4 {[%emt 0:0:0]} cxd4 {[%emt 0:0:2]} 4. Qxd4 {[%emt 0:0:1]} Nc6 {[%emt 0:0:22]} 5. Bb5 {[%emt 0:0:1]} Bd7 {[%emt 0:0:0]} 6. Bxc6 {[%emt 0:0:1]
} Bxc6 {[%emt 0:0:2]} 7. Nc3 {[%emt 0:0:1]} Nf6 {[%emt 0:0:0]} 8. Bg5 {[%emt 0:0:4]} e6 {[%emt 0:0:1]} 9. 0-0-0 {[%emt 0:0:17]} Be7 {[%emt 0:0:3]} 10. Qd3 {[%emt 0:0:1]} Qa5 {[%emt 0:0:39]} 11. h4 {[%emt 0:0:0]} h6 {[%emt 0:0:26]} 12. Bxf6 {[%emt 0:1:36]} gxf6 {[%emt 0:1:51]} 13. Nd4 {[%emt 0:0:16]} a6 {[%emt 0:0:3]} 14. f4 {[%emt 0:0:31]} Bd7 {[%emt 0:0:0]} 15. Kb1 {[%emt 0:0:34]} 0-0-0 {[%emt 0:0:36]} 16. g4 {[%emt 0:0:49]} Kb8 {[%emt 0:0:5]} 17. f5 {[%emt 0:1:28]} Rc8 {[%emt 0:1:37]} 18. Nce2 {[%emt 0:0:47]
} Rhg8 {[%emt 0:1:23]} 19. Rhg1 {[%emt 0:0:32]} Qe5 {[%emt 0:0:0]} 20. Qf3 {[%emt 0:0:57]} Bd8 {[%emt 0:0:46]} 21. Qd3 {[%emt 0:1:25]} Ka7 {[%emt 0:2:20]} 22. Rg2 {[%emt 0:3:6]} Bb6 {[%emt 0:0:40]} 23. a3 {[%emt 0:0:20]
} d5 {[%emt 0:0:31]} 24. exd5 {[%emt 0:1:37]} Qxd5 {[%emt 0:0:0]} 25. fxe6 {[%emt 0:3:18]} fxe6 {[%emt 0:0:33]} 26. Rg3 {[%emt 0:0:2]} e5 {[%emt 0:0:32]} 27. Nf5 {[%emt 0:0:50]} Qc5 {[%emt 0:0:54]} 28. Nd6 {[%emt 0:0:13]
} Rc7 {[%emt 0:0:30]} 29. Ne4 {[%emt 0:0:0]} Qc6 {[%emt 0:0:0]} 30. g5 {[%emt 0:0:8]} Bf5 {[%emt 0:0:15]} 31. N2c3 {[%emt 0:0:1]} fxg5 {[%emt 0:0:31]} 32. Qf3 {[%emt 0:0:8]} Bxe4 {[%emt 0:1:2]} 33. Qxe4 {[%emt 0:0:2]
} Qxe4 {[%emt 0:0:17]} 34. Nxe4 {[%emt 0:0:1]} Rc4 {[%emt 0:0:0]} 35. Re1 {[%emt 0:0:15]} g4 36. h5 Bd8 {[%emt 0:0:47]} 37. b3 {[%emt 0:0:6]
} Rd4 {[%emt 0:0:2]} 38. c3 {[%emt 0:0:1]} Rd7 39. Reg1 Rdg7 {[%emt 0:0:33]} 40. R1g2 {[%emt 0:0:3]} Bh4 {[%emt 0:0:4]} 41. Rd3 {[%emt 0:0:0]
} g3 {[%emt 0:0:5]} 42. Rd5 {[%emt 0:0:5]} Re7 {[%emt 0:0:0]} 43. Kc2 {[%emt 0:0:6]} Rg4 {[%emt 0:0:7]} 44. Kd3 {[%emt 0:0:0]} Rf4 {[%emt 0:0:3]} 45. Ke3 {[%emt 0:0:1]} Rf5 {[%emt 0:0:7]} 46. Rd6 {[%emt 0:0:2]
} Rxh5 {[%emt 0:0:6]} 47. Rg6 {[%emt 0:0:2]} Rf7 {[%emt 0:0:0]} 48. Nxg3 {[%emt 0:0:0]} Bg5+ {[%emt 0:0:18]} 49. Ke4 {[%emt 0:0:3]} Rh3 {[%emt 0:0:3]} 50. Kxe5 {[%emt 0:0:0]} Re7+ 51. Kd5 Bf4 {[%emt 0:0:23]
} 52. Ne2 {[%emt 0:0:17]} Bg5 {[%emt 0:0:17]} 53. Re6 {[%emt 0:0:49]} Rd3+ {[%emt 0:0:12]
} 54. Kc4 {[%emt 0:0:0]} Rxc3+ {[%emt 0:0:1]} 55. Nxc3 {[%emt 0:0:8]
} Rxe6 {[%emt 0:0:1]} 56. a4 {[%emt 0:0:4]} Rc6+ {[%emt 0:0:0]} 57. Kd3 {[%emt 0:0:2]} Rd6+ {[%emt 0:0:5]} 58. Ke4 {[%emt 0:0:1]} Rb6 {[%emt 0:0:4]} 59. Rg3 {[%emt 0:0:7]} Rb4+ {[%emt 0:0:14]} 60. Kf5 {[%emt 0:0:37]
} Rd4 {[%emt 0:0:24]} 61. Ne4 {[%emt 0:0:3]} Bc1 {[%emt 0:0:0]} 62. Rg7 {[%emt 0:0:16]} Rd3 {[%emt 0:0:15]} 63. Rxb7+ Kxb7 {[%emt 0:0:0]} 64. Nc5+ {[%emt 0:0:4]} Kc6 {[%emt 0:0:4]} 65. Nxd3 {[%emt 0:0:0]} Bd2 {[%emt 0:0:1]} 66. b4 {[%emt 0:0:30]} Kd5 {[%emt 0:0:7]} 67. Nc5 {[%emt 0:1:18]
} a5 {[%emt 0:0:4]} 68. bxa5 {[%emt 0:0:0]} Kxc5 {[%emt 0:0:0]} 69. Kg4 {[%emt 0:0:3]} Bxa5 {[%emt 0:0:6]} 70. Kh3 {[%emt 0:0:2]} Kb4 {[%emt 0:0:2]} 71. Kg2 {[%emt 0:0:1]} Kxa4 {[%emt 0:0:1]} 72. Kh1 {[%emt 0:0:0]
} 1/2-1/2

[Event "FIDE World Rapid-ch Open 2018"]
[White "Vastrukhin, Oleg"]
[Black "Kovalenko, Igor"]
[Site "St. Petersburg"]
[Round "10.63"]
[Annotator "ChessBase"]
[Result "0-1"]
[Date "2018.12.27"]
[WhiteElo "2413"]
[BlackElo "2657"]
[PlyCount "97"]
[TimeControl "900+10"]

1. Nf3 {[%emt 0:0:0]} d5 {[%emt 0:0:0]} 2. g3 {[%emt 0:0:0]} c6 {[%emt 0:0:0]} 3. Bg2 {[%emt 0:0:0]} Bg4 {[%emt 0:0:0]} 4. Ne5 {[%emt 0:0:0]} Be6 {[%emt 0:0:0]} 5. d4 {[%emt 0:0:1]} Nd7 {[%emt 0:0:0]} 6. 0-0 {[%emt 0:0:11]
} Ngf6 {[%emt 0:0:3]} 7. Nd3 {[%emt 0:0:26]} Bf5 {[%emt 0:0:0]} 8. Nd2 {[%emt 0:0:6]} e6 {[%emt 0:0:2]} 9. c4 {[%emt 0:0:49]} Bxd3 {[%emt 0:0:10]
} 10. exd3 {[%emt 0:0:1]} Bd6 {[%emt 0:0:9]} 11. Qb3 {[%emt 0:0:16]
} Rb8 {[%emt 0:0:3]} 12. Nf3 {[%emt 0:0:10]} 0-0 {[%emt 0:0:0]} 13. Re1 {[%emt 0:0:9]} Bc7 {[%emt 0:1:16]} 14. Qc2 {[%emt 0:1:12]} h6 {[%emt 0:0:17]} 15. b4 {[%emt 0:0:19]} a5 {[%emt 0:0:14]} 16. a3 {[%emt 0:0:0]} Ra8 {[%emt 0:0:9]} 17. Bd2 {[%emt 0:0:12]} Qb8 {[%emt 0:0:12]} 18. b5 {[%emt 0:0:50]} cxb5 {[%emt 0:0:37]} 19. c5 {[%emt 0:1:24]} Qe8 {[%emt 0:0:0]} 20. Rab1 {[%emt 0:0:42]} Nb8 {[%emt 0:0:7]} 21. Qb2 {[%emt 0:0:23]} b4 {[%emt 0:1:7]} 22. axb4 {[%emt 0:0:6]} axb4 {[%emt 0:0:7]} 23. Qxb4 {[%emt 0:0:27]
} Ra7 {[%emt 0:0:32]} 24. Ra1 {[%emt 0:0:48]} Nc6 {[%emt 0:0:0]} 25. Qb2 {[%emt 0:0:2]} Rxa1 {[%emt 0:1:41]} 26. Rxa1 {[%emt 0:0:4]} Qc8 {[%emt 0:0:1]} 27. Rb1 {[%emt 0:0:51]} Nd8 {[%emt 0:0:25]} 28. Ne5 {[%emt 0:0:26]
} Nd7 {[%emt 0:0:25]} 29. f4 {[%emt 0:0:58]} Bxe5 {[%emt 0:0:0]} 30. fxe5 {[%emt 0:0:5]} Nb8 {[%emt 0:0:2]} 31. g4 {[%emt 0:3:19]} Nbc6 {[%emt 0:0:6]} 32. h4 {[%emt 0:0:27]} Qc7 {[%emt 0:0:12]} 33. g5 {[%emt 0:0:26]
} h5 {[%emt 0:0:5]} 34. Be3 {[%emt 0:0:23]} g6 {[%emt 0:0:9]
} 35. Qb6 {[%emt 0:0:15]} Qc8 {[%emt 0:0:8]} 36. Ra1 {[%emt 0:0:43]} Ne7 {[%emt 0:1:9]
} 37. Bf2 {[%emt 0:0:37]} Ndc6 {[%emt 0:1:17]} 38. Bh3 {[%emt 0:0:49]
} Qd7 {[%emt 0:0:7]} 39. Rb1 {[%emt 0:0:59]} Rb8 {[%emt 0:0:0]} 40. Qb5 {[%emt 0:0:20]} Qe8 {[%emt 0:0:8]} 41. Qb2 {[%emt 0:0:8]} Ra8 {[%emt 0:0:3]} 42. Qb6 {[%emt 0:0:15]} Ra7 {[%emt 0:0:13]} 43. Kg2 {[%emt 0:1:21]
} Qa8 {[%emt 0:0:27]} 44. Qb2 {[%emt 0:0:17]} Nd8 {[%emt 0:0:0]} 45. Qb6 {[%emt 0:0:21]} Nec6 {[%emt 0:0:31]} 46. Kg1 {[%emt 0:0:31]} Ra6 {[%emt 0:0:3]} 47. Qb2 {[%emt 0:0:12]} Ra2 {[%emt 0:0:1]} 48. Qb3 {[%emt 0:0:9]
} Qa5 {[%emt 0:0:4]} 49. Be1 {[%emt 0:0:26]} 0-1

[Event "FIDE World Rapid-ch Open 2018"]
[White "Jones, Gawain C B"]
[Black "Belyakov, Bogdan"]
[Site "St. Petersburg"]
[Round "10.64"]
[Annotator "ChessBase"]
[Result "0-1"]
[Date "2018.12.27"]
[WhiteElo "2682"]
[BlackElo "2459"]
[PlyCount "146"]
[TimeControl "900+10"]

1. e4 {[%emt 0:0:0]} e5 {[%emt 0:0:0]} 2. Nf3 {[%emt 0:0:0]} Nc6 {[%emt 0:0:0]
} 3. Bc4 {[%emt 0:0:0]} Bc5 {[%emt 0:0:0]} 4. c3 {[%emt 0:0:0]} Nf6 {[%emt 0:0:0]} 5. d4 {[%emt 0:0:0]} exd4 {[%emt 0:0:2]} 6. e5 {[%emt 0:0:0]
} d5 {[%emt 0:0:4]} 7. Bb5 {[%emt 0:0:0]} Ne4 {[%emt 0:0:9]
} 8. cxd4 {[%emt 0:0:0]} Bb6 {[%emt 0:0:3]} 9. Nc3 {[%emt 0:0:2]} Bg4 {[%emt 0:0:18]
} 10. h3 {[%emt 0:1:6]} Bh5 {[%emt 0:0:27]} 11. Be3 {[%emt 0:0:0]} 0-0 {[%emt 0:0:9]} 12. Qc2 {[%emt 0:0:1]} Bg6 {[%emt 0:1:5]} 13. Qb3 {[%emt 0:0:2]} Ne7 {[%emt 0:2:1]} 14. 0-0 {[%emt 0:0:27]} c6 {[%emt 0:0:0]} 15. Bd3 {[%emt 0:0:3]} Nxc3 {[%emt 0:0:23]} 16. Qxc3 {[%emt 0:0:6]
} Bxd3 {[%emt 0:0:2]} 17. Qxd3 {[%emt 0:0:2]} Qd7 {[%emt 0:0:12]} 18. Nh4 {[%emt 0:0:31]} f5 {[%emt 0:1:24]} 19. Bg5 {[%emt 0:1:4]} Ng6 {[%emt 0:0:0]} 20. Nxg6 {[%emt 0:0:18]} hxg6 {[%emt 0:0:2]} 21. Rfe1 {[%emt 0:0:50]} Qe6 {[%emt 0:0:5]} 22. Bf4 {[%emt 0:0:25]} Rae8 {[%emt 0:0:25]} 23. Rac1 {[%emt 0:0:6]
} Qe7 {[%emt 0:0:23]} 24. Qd2 {[%emt 0:0:34]} Bd8 {[%emt 0:0:0]} 25. e6 {[%emt 0:0:44]} g5 {[%emt 0:0:2]} 26. Be5 {[%emt 0:0:9]} Bb6 {[%emt 0:2:42]
} 27. b4 {[%emt 0:0:20]} f4 {[%emt 0:0:43]} 28. a4 {[%emt 0:0:0]} a6 {[%emt 0:1:20]} 29. Rb1 {[%emt 0:0:24]} Qd8 {[%emt 0:0:24]} 30. Qd1 {[%emt 0:1:20]} Rxe6 {[%emt 0:0:17]} 31. Qg4 {[%emt 0:0:10]} Qe7 {[%emt 0:0:0]} 32. Red1 {[%emt 0:0:20]} Re8 {[%emt 0:0:23]} 33. a5 {[%emt 0:4:16]} Ba7 {[%emt 0:0:8]} 34. Rdc1 {[%emt 0:0:53]} Bb8 {[%emt 0:0:36]} 35. Bxb8 {[%emt 0:0:4]
} Rxb8 {[%emt 0:0:2]} 36. Kh2 {[%emt 0:0:17]} Re8 {[%emt 0:0:0]} 37. Rb3 {[%emt 0:0:5]} Qf6 {[%emt 0:0:9]} 38. Rd1 {[%emt 0:0:13]} g6 {[%emt 0:0:36]} 39. h4 {[%emt 0:0:31]} gxh4 {[%emt 0:0:12]} 40. Rh3 {[%emt 0:0:1]
} Kg7 {[%emt 0:0:25]} 41. Rxh4 {[%emt 0:0:14]} Qxh4+ {[%emt 0:0:0]} 42. Qxh4 {[%emt 0:0:1]} Rh8 {[%emt 0:0:1]} 43. Qxh8+ {[%emt 0:0:0]} Kxh8 {[%emt 0:0:2]} 44. Rd2 {[%emt 0:0:14]} Kg7 {[%emt 0:0:26]} 45. Kh3 {[%emt 0:0:1]} Re1 {[%emt 0:0:31]} 46. Kg4 {[%emt 0:0:4]} Rb1 {[%emt 0:0:20]
} 47. Kxf4 {[%emt 0:0:3]} Kf6 {[%emt 0:0:1]} 48. g4 {[%emt 0:0:0]} g5+ {[%emt 0:0:4]} 49. Ke3 {[%emt 0:0:7]} Rxb4 {[%emt 0:0:2]} 50. Rd3 {[%emt 0:0:4]} Rb5 {[%emt 0:0:13]} 51. Ra3 {[%emt 0:0:4]} Rb4 {[%emt 0:0:20]
} 52. f3 {[%emt 0:0:9]} Ke6 {[%emt 0:0:9]} 53. Kd3 {[%emt 0:0:0]} Kd6 {[%emt 0:0:22]} 54. Ke3 {[%emt 0:0:7]} c5 {[%emt 0:1:16]} 55. dxc5+ {[%emt 0:0:4]} Kxc5 {[%emt 0:0:1]} 56. Rc3+ {[%emt 0:0:12]} Kb5 {[%emt 0:0:21]
} 57. Rc7 {[%emt 0:0:29]} Kxa5 {[%emt 0:0:3]} 58. Rg7 {[%emt 0:0:1]
} d4+ {[%emt 0:0:1]} 59. Ke4 {[%emt 0:0:8]} Rb5 {[%emt 0:0:0]} 60. f4 {[%emt 0:0:18]} gxf4 {[%emt 0:0:6]} 61. g5 {[%emt 0:0:3]} d3 {[%emt 0:0:24]
} 62. Kxd3 {[%emt 0:0:7]} f3 {[%emt 0:0:6]} 63. Ke3 {[%emt 0:0:0]} Rf5 {[%emt 0:0:4]} 64. Kf2 {[%emt 0:0:7]} b5 {[%emt 0:0:2]} 65. g6 {[%emt 0:0:6]} Rf6 {[%emt 0:0:5]} 66. Rg8 {[%emt 0:0:6]} b4 {[%emt 0:0:0]} 67. Rg7 {[%emt 0:0:28]} Ka4 {[%emt 0:0:5]} 68. Rg8 {[%emt 0:0:4]} a5 {[%emt 0:0:8]} 69. Ke1 {[%emt 0:0:16]} b3 {[%emt 0:0:33]} 70. g7 {[%emt 0:0:10]
} f2+ {[%emt 0:0:13]} 71. Kf1 {[%emt 0:0:1]} Rf7 {[%emt 0:0:0]} 72. Rb8 {[%emt 0:0:26]} Rxg7 {[%emt 0:0:2]} 73. Kxf2 {[%emt 0:0:1]} Re7 {[%emt 0:0:2]} 0-1

[Event "FIDE World Rapid-ch Open 2018"]
[White "Novikov, Stanislav"]
[Black "Belozerov, Andrei"]
[Site "St. Petersburg"]
[Round "10.65"]
[Annotator "ChessBase"]
[Result "1-0"]
[Date "2018.12.27"]
[WhiteElo "2540"]
[BlackElo "2528"]
[PlyCount "113"]
[TimeControl "900+10"]

1. e4 {[%emt 0:0:0]} c6 {[%emt 0:0:0]} 2. d3 {[%emt 0:0:11]} d5 {[%emt 0:0:0]} 3. Nd2 {[%emt 0:0:1]} e5 {[%emt 0:0:0]} 4. Ngf3 {[%emt 0:0:2]} Bd6 {[%emt 0:0:0]} 5. g3 {[%emt 0:0:2]} Nf6 {[%emt 0:0:0]} 6. Bg2 {[%emt 0:0:1]
} 0-0 {[%emt 0:0:0]} 7. 0-0 {[%emt 0:0:2]} Re8 {[%emt 0:0:0]} 8. c3 {[%emt 0:0:2]} Nbd7 {[%emt 0:0:6]} 9. Qc2 {[%emt 0:0:2]} Qc7 {[%emt 0:0:6]
} 10. b3 {[%emt 0:0:7]} b6 {[%emt 0:0:9]} 11. Bb2 {[%emt 0:0:0]} Ba6 {[%emt 0:0:11]} 12. Rfe1 {[%emt 0:0:4]} Rad8 {[%emt 0:2:10]} 13. a3 {[%emt 0:1:1]} Bf8 {[%emt 0:0:30]} 14. b4 {[%emt 0:0:8]} g6 {[%emt 0:0:28]
} 15. c4 {[%emt 0:0:50]} d4 {[%emt 0:0:21]} 16. Nb3 {[%emt 0:0:0]} c5 {[%emt 0:0:13]} 17. b5 {[%emt 0:0:27]} Bc8 {[%emt 0:0:23]} 18. a4 {[%emt 0:0:1]} Bh6 {[%emt 0:0:51]} 19. a5 {[%emt 0:0:6]} Nf8 {[%emt 0:0:0]} 20. Ra2 {[%emt 0:1:8]} Nh5 {[%emt 0:0:40]} 21. Rea1 {[%emt 0:2:8]} Bb7 {[%emt 0:0:11]} 22. Bc1 {[%emt 0:0:15]} Bxc1 {[%emt 0:0:7]} 23. Qxc1 {[%emt 0:0:2]
} Kg7 {[%emt 0:0:16]} 24. Nh4 {[%emt 0:0:14]} Ne6 {[%emt 0:0:0]} 25. Nd2 {[%emt 0:1:51]} Qe7 {[%emt 0:0:33]} 26. Qd1 {[%emt 0:1:29]} Kh8 {[%emt 0:0:14]} 27. Ndf3 {[%emt 0:0:51]} Neg7 {[%emt 0:0:45]} 28. Qd2 {[%emt 0:0:14]
} f6 {[%emt 0:0:47]} 29. axb6 {[%emt 0:1:38]} axb6 {[%emt 0:0:0]} 30. Ra7 {[%emt 0:0:2]} Kg8 {[%emt 0:0:22]} 31. Bh3 {[%emt 0:0:19]} Ra8 {[%emt 0:1:18]} 32. Ng2 {[%emt 0:1:7]} Rxa7 {[%emt 0:2:44]} 33. Rxa7 {[%emt 0:0:2]
} Ra8 {[%emt 0:0:0]} 34. Qa2 {[%emt 0:2:19]} Qd8 {[%emt 0:0:0]} 35. Nfh4 {[%emt 0:1:54]} Qb8 {[%emt 0:2:14]} 36. Rxa8 {[%emt 0:0:2]} Qxa8 {[%emt 0:0:1]} 37. Qxa8+ {[%emt 0:0:1]} Bxa8 {[%emt 0:0:1]} 38. f4 {[%emt 0:0:2]
} exf4 {[%emt 0:0:19]} 39. g4 {[%emt 0:0:15]} f5 {[%emt 0:0:0]} 40. gxh5 {[%emt 0:0:16]} fxe4 {[%emt 0:0:6]} 41. dxe4 {[%emt 0:0:40]} Bxe4 {[%emt 0:0:42]} 42. hxg6 {[%emt 0:0:23]} hxg6 {[%emt 0:0:6]} 43. Kf2 {[%emt 0:0:24]
} Kf7 {[%emt 0:0:20]} 44. Nf3 {[%emt 0:0:9]} Bxf3 {[%emt 0:0:0]} 45. Kxf3 {[%emt 0:0:1]} g5 {[%emt 0:0:1]} 46. Ke4 {[%emt 0:0:20]} Nh5 {[%emt 0:0:10]} 47. Ne1 {[%emt 0:0:14]} Nf6+ {[%emt 0:0:30]} 48. Kf5 {[%emt 0:0:5]
} Nh7 {[%emt 0:0:19]} 49. Nf3 {[%emt 0:0:17]} Ke7 {[%emt 0:0:0]} 50. Bf1 {[%emt 0:0:6]} Kd6 {[%emt 0:0:16]} 51. Bd3 {[%emt 0:0:6]} Nf8 {[%emt 0:0:13]} 52. Nxg5 {[%emt 0:0:5]} Nd7 {[%emt 0:0:1]} 53. Ne4+ {[%emt 0:0:9]
} Ke7 {[%emt 0:0:1]} 54. Kxf4 Nf8 55. Ng5 {[%emt 0:0:10]} Nd7 {[%emt 0:0:6]} 56. h4 {[%emt 0:0:5]} Nf6 {[%emt 0:0:1]} 57. Be2 {[%emt 0:0:0]} 1-0